Workbook

Sheet Sheet1
D9: Είδος Ελέγχου | F9: √ ή -
D10: Τακτικός
D11: Επανέλεγχος
D12: Έκτακτος
D13: RASFF
D14: Ημερομηνία προηγούμενου ελέγχου:
D15: Ημερομηνία & Ώρα Ελέγχου:
A19: ΕΝΤΥΠΟ ΕΛΕΓΧΟΥ ΕΓΚΑΤΑΣΤΑΣΕΩΝ ΤΕΜΑΧΙΣΜΟΥ ΚΡΕΑΤΟΣ, ΠΑΡΑΓΩΓΗΣ ΚΙΜΑ, ΠΑΡΑΣΚΕΥΑΣΜΑΤΩΝ, ΠΡΟΪΟΝΤΩΝ ΜΕ ΒΑΣΗ ΤΟ ΚΡΕΑΣ & ΛΟΙΠΩΝ ΠΡΟΪΟΝΤΩΝ
A20: ΣΤΟΙΧΕΙΑ ΕΠΙΧΕΙΡΗΣΗΣ
A22: 1 | B22: Επωνυμία
A23: 2 | B23: Διεύθυνση
A24: 3 | B24: Τηλέφωνο / Fax
A25: 4 | B25: E-mail
A27: 5 | B27: Ονοματεπώνυμο
B28: Ιδιοκτήτη
A29: 6 | B29: ΑΦΜ / ΔΟΥ
A31: 7 | B31: Ονοματεπώνυμο
B32: Νόμιμου Εκπροσώπου
A33: 8 | B33: Αριθμός Γνωστοποίησης / Ημερομηνία Υποβολής
A35: 9 | B35: Αριθμός Έγκρισης
B37: ΔΡΑΣΤΗΡΙΟΤΗΤΑ – ΠΡΟΙΟΝΤΑ
F40: √
A41: 1 | B41: Τεμαχισμός | J41: √ | K41: ΣΧΟΛΙΑ
A42: 1.1 | B42: Κρέατος | G42: 1.3 | H42: Θηραμάτων
A43: 1.2 | B43: Πουλερικών | G43: 1.4 | H43: Λαγόμορφα
A44: 2 | B44: Παραγωγή Μ.Δ.Κ.
A45: 3 | B45: Παραγωγή κιμά
A46: 4.1 | B46: Παρασκευάσματα κρέατος | G46: 4.2 | H46: Παρασκευάσματα κρέατος πουλερικών
A47: 5 | B47: Προϊόντα με βάση το κρέας
A48: 5.1 | B48: Θερμικής Επεξεργασίας | G48: 5.3 | H48: Άλλα προϊόντα με βάση το κρέας (π.χ. σούπες, ζωμοί κρέατος, εκχυλίσματα κρέατος, σάλτσες κ.τ.λ.)
A49: 5.2 | B49: Ζύμωσης/ ωρίμανσης
A50: 6 | B50: Ζελατίνη/κολλαγόνο
A51: 7 | B51: Τετηγμένο λίπος και κατάλοιπα ζωικού λίπους | G51: 8 | H51: Επεξεργασμένα στομάχια, ουροδόχοι κύστεις και έντερα
A52: 8 | B52: Κονσερβοποιημένα προϊόντα | G52: 10 | H52: Σαλιγκάρια/ Βατραχοπόδαρα
A53: 9 | B53: Ανασυσκευσία προϊόντων | G53: 12 | H53: Παραγωγή έτοιμων μαγειρεμένων φαγητών (catering)
A54: 10 | B54: Άλλα προϊόντα
A55: ΠΔ | B55: ΠΑΡΑΔΟΣΙΑΚΑ ΠΡΟΪΟΝΤΑ
B56: (ΚΤΠ αρθρ 88-91, ΠΑΡΑΡΤΗΜΑ ΙΙ)
B57: Δυναμικότητα – Όγκος Παραγόμενων Προϊόντων (Μηνιαία ή ετήσια παραγωγή)
B59: Εξαγωγική δραστηριότητα &
B60: όγκος % επί της ετήσιας παραγωγής
B61: Εποχική Λειτουργία
B63: Αριθμός Εργαζομένων
B66: ΚΕΦΑΛΑΙΟ Ι. ΣΥΣΤΗΜΑΤΑ ΚΑΙ ΔΙΑΔΙΚΑΣΙΕΣ
A67: A. | B67: ΣΥΣΤΗΜΑ ΑΥΤΟΕΛΕΓΧΟΥ | G67: ΝΑΙ (Συμμόρφωση) | H67: ΜΕΡΙΚΗ ΣΥΜΜΟΡΦΩΣΗ | I67: ΟΧΙ (μη συμμόρφωση) | J67: Δεν εφαρμόζεται | K67: Βαθμολογία
A68: 1 | B68: Διαγράμματα ροής ή περιγραφή ροής για όλα τα προϊόντα ή ανά προϊόν | G68: 0 | H68: 9 | I68: 18 | J68: 0
A69: 2 | B69: Επιβεβαίωση τήρησης διαδικασίας βάσει των αρχών HACCP | G69: 0 | H69: 9 | I69: 18 | J69: 0
A70: 3 | B70: Έχουν καταγραφεί όλοι οι πιθανοί κίνδυνοι και έχουν εντοπιστεί ΣΕ για όλες τις κατηγορίες των παραγόμενων προϊόντων | G70: 0 | H70: 9 | I70: 18 | J70: 0
A71: 4 | B71: Εφαρμόζονται αποτελεσματικές διαδικασίες παρακολούθησης στα ΚΣΕ ή των ΣΕ | G71: 0 | H71: 6 | I71: 12 | J71: 0
A72: 5 | B72: Υπάρχει τεκμηρίωση των κρίσιμων ορίων (βιβλιογραφική ή νομοθετική); | G72: 0 | H72: 6 | I72: 12 | J72: 0
A73: 6 | B73: Εφαρμόζονται αποτελεσματικές διαδικασίες παρακολούθησης στα ΚΣΕ | G73: 0 | H73: 9 | I73: 18 | J73: 0
A74: 7 | B74: Έχουν καθοριστεί οι απαραίτητες διορθωτικές ενέργειες και τεκμηριώνονται | G74: 0 | H74: 6 | I74: 12 | J74: 0
A75: 8 | B75: Εφαρμόζονται διαδικασίες επαλήθευσης/ επικύρωσης για την ανάδειξη της αποτελεσματικότητας | G75: 0 | H75: 6 | I75: 12 | J75: 0
A76: 9 | B76: Γίνεται ανασκόπηση του συστήματος HACCP (αλλαγές νομοθεσίας, προμηθευτών, αλλαγές προϊόντων κλπ) | G76: 0 | H76: 6 | I76: 12 | J76: 0
A77: 10 | B77: Κατάλληλη τεκμηρίωση σε περίπτωση χρονικών διαχωρισμών κατά την παραγωγική διαδικασία | G77: 0 | H77: 9 | I77: 18 | J77: 0
A78: 11 | B78: Τήρηση αρχείων | G78: 0 | H78: 6 | I78: 12 | J78: 0
B79: Εφαρμογή συστήματος HACCP/αξιοποίηση δυνατότητας ευελιξίας
A80: B. | B80: ΚΑΘΑΡΙΣΜΟΣ – ΑΠΟΛΥΜΑΝΣΗ | G80: ΝΑΙ (Συμμόρφωση) | H80: ΜΕΡΙΚΗ ΣΥΜΜΟΡΦΩΣΗ | I80: ΟΧΙ (μη συμμόρφωση) | J80: Δεν εφαρμόζεται | K80: Βαθμολογία
A81: 12 | B81: Υφίσταται διαδικασία καθαρισμού – απολύμανσης με προσδιορισμένη συχνότητα που να ικανοποιεί τις απαιτήσεις της εγκατάστασης | G81: 0 | H81: 9 | I81: 18 | J81: 0
A82: 13 | B82: Έλεγχος αποτελεσματικότητας του καθαρισμού / απολύμανσης επιφανειών / εξοπλισμού | G82: 0 | H82: 6 | I82: 12 | J82: 0
A83: 14 | B83: Εξετάσεις από τις επιφάνειες για Listeria spp κατά τη διάρκεια της παραγωγικής διαδικασίας και τεκμηρίωση | G83: 0 | H83: 9 | I83: 18 | J83: 0
A84: 15 | B84: Κατάλληλα υλικά καθαρισμού – απολύμανσης που χρησιμοποιούνται βάσει των οδηγιών χρήσης τους και αποθηκεύονται σε διακριτό χώρο | G84: 0 | H84: 6 | I84: 12 | J84: 0
A85: Γ. | B85: ΠΡΟΓΡΑΜΜΑ ΕΛΕΓΧΟΥ ΕΠΙΒΛΑΒΩΝ ΟΡΓΑΝΙΣΜΩΝ | G85: ΝΑΙ (Συμμόρφωση) | H85: ΜΕΡΙΚΗ ΣΥΜΜΟΡΦΩΣΗ | I85: ΟΧΙ (μη συμμόρφωση) | J85: Δεν εφαρμόζεται | K85: Βαθμολογία
A86: 16 | B86: Εφαρμογή τεκμηριωμένου προγράμματος ελέγχου επιβλαβών οργανισμών | G86: 0 | H86: 6 | I86: 12 | J86: 0
A87: 17 | B87: Χρήση προληπτικών μέτρων (σίτες, αεροκουρτίνες, άλλοι προστατευτικοί μηχανισμοί) | G87: 0 | H87: 6 | I87: 12 | J87: 0
A88: 18 | B88: Τοποθέτηση των παγίδων σύμφωνα με το σχετικό σχεδιάγραμμα / Ικανοποιητική κάλυψη | G88: 0 | H88: 6 | I88: 12 | J88: 0
A89: 19 | B89: Χρήση Εγκεκριμένων σκευασμάτων | G89: 0 | H89: 6 | I89: 12 | J89: 0
A90: 20 | B90: Διαθέσιμες εκθέσεις , καταγραφή ευρημάτων & διορθωτικών ενεργειών | G90: 0 | H90: 3 | I90: 6 | J90: 0
A91: Δ. | B91: ΕΚΠΑΙΔΕΥΣΗ ΠΡΟΣΩΠΙΚΟΥ | G91: ΝΑΙ (Συμμόρφωση) | H91: ΜΕΡΙΚΗ ΣΥΜΜΟΡΦΩΣΗ | I91: ΟΧΙ (μη συμμόρφωση) | J91: Δεν εφαρμόζεται | K91: Βαθμολογία
A92: 21 | B92: Υπάρχει μέριμνα και πρόγραμμα για την εκπαίδευση νέων υπαλλήλων ή όταν υφίστανται αλλαγές στην παραγωγική διαδικασία (νέο προϊόν, υιοθέτησης νέας τεχνολογίας) | G92: 0 | H92: 6 | I92: 12 | J92: 0
A93: 22 | B93: Υφίσταται περιεχόμενο και σχετική τεκμηρίωση (αρχές ατομικής υγιεινής, αρχές ορθών πρακτικών, εκτέλεση εργασίας βάσει της θέσης) | G93: 0 | H93: 3 | I93: 6 | J93: 0
A94: Ε. | B94: ΕΛΕΓΧΟΣ ΝΕΡΟΥ | G94: ΝΑΙ (Συμμόρφωση) | H94: ΜΕΡΙΚΗ ΣΥΜΜΟΡΦΩΣΗ | I94: ΟΧΙ (μη συμμόρφωση) | J94: Δεν εφαρμόζεται | K94: Βαθμολογία
B95: Προσδιορισμός προέλευσης πόσιμου νερού
B96: Δημόσιο Δίκτυο | E96: Ιδία πηγή (πχ γεώτρηση)
A97: 23 | B97: Διαθέσιμο σχεδιάγραμμα σημείων υδροδοσίας (παροχή ζεστού & κρύου) | G97: 0 | H97: 3 | I97: 6 | J97: 0
A98: 24 | B98: Συχνότητα μικροβιολογικών και φυσικοχημικών εξετάσεων νερού ακολουθείται | G98: 0 | H98: 6 | I98: 12 | J98: 0
B99: Άλλα μέτρα για την αποφυγή κινδύνων (χλωρίωση, φίλτρα, UV & μέτρα διήθησης )
B100: ΣΥΝΟΛΟ ΚΕΦΑΛΑΙΟΥ I | D100: =SUM(I68:I99) -> 312 | G100: =SUM(K68:K99) -> 0
B101: 0.7 | E101: 0.399 | I101: =IF(G100>=B102,"HIGH RISK",IF(G100<=E102,"LOW RISK","MEDIUM RISK")) -> LOW RISK
B102: =70%*D100 -> 218.4 | E102: =39.9%*D100 -> 124.488
B105: ΚΕΦΑΛΑΙΟ II- ΙΧΝΗΛΑΣΙΜΟΤΗΤΑ
G106: ΝΑΙ (Συμμόρφωση) | H106: ΜΕΡΙΚΗ ΣΥΜΜΟΡΦΩΣΗ | I106: ΟΧΙ (μη συμμόρφωση) | J106: Δεν εφαρμόζεται | K106: Βαθμολογία
A107: 25 | B107: Συσχέτιση ποιοτική & ποσοτική των α΄& βοηθητικών υλών με τους προμηθευτές τους (όνομα, διεύθυνση) & ημερομηνία παραλαβής καθώς και των τελικών προϊόντων με τους αποδέκτες τους (όνομα & διεύθυνση & ημερομηνία αποστολής) | G107: 0 | H107: 9 | I107: 18 | J107: 0
A108: 26 | B108: -Ειδικές απαιτήσεις για το κρέας | G108: 0 | H108: 9 | I108: 18 | J108: 0
B109: -βόειο κρέας & προϊόντα με βάση το βόειο κρέας
B110: -χώρα καταγωγής ή τόπος προέλευσης για κρέας χοιροειδών, προβατοειδών, αιγοειδών & πουλερικών
B111: -για κατεψυγμένη πρώτη ύλη: ημερομηνία παραγωγής & κατάψυξης (btb)
A112: 27 | B112: Σύστημα εσωτερικής ιχνηλασιμότητας (προαιρετικά): Συσχέτιση αριθμού παρτίδων των χρησιμοποιούμενων συστατικών για κάθε παρτίδα προϊόντος (σύνθετα) | G112: 0 | H112: 3 | I112: 6 | J112: 0
A113: 28 | B113: Αναγνώριση παρτίδας τελικών προϊόντων | G113: 0 | H113: 9 | I113: 18 | J113: 0
A114: 29 | B114: Αποτελεσματική λειτουργία συστήματος ανάκλησης | G114: 0 | H114: 9 | I114: 18 | J114: 0
A115: 30 | B115: Τήρηση σχετικών αρχείων | G115: 0 | H115: 9 | I115: 18 | J115: 0
B116: ΣΥΝΟΛΟ ΚΕΦΑΛΑΙΟΥ II | D116: =SUM(I107:I115) -> 96 | G116: =SUM(K106:K115) -> 0
B117: 0.7 | E117: 0.399 | I117: =IF(G116>=B118,"HIGH RISK",IF(G116<=E118,"LOW RISK","MEDIUM RISK")) -> LOW RISK
B118: =70%*D116 -> 67.2 | E118: =39.9%*D116 -> 38.304
B121: ΚΕΦΑΛΑΙΟ III- ΕΞΕΤΑΣΕΙΣ / ΕΡΓΑΣΤΗΡΙΑΚΟΙ ΕΛΕΓΧΟΙ
G122: ΝΑΙ (Συμμόρφωση) | H122: ΜΕΡΙΚΗ ΣΥΜΜΟΡΦΩΣΗ | I122: ΟΧΙ (μη συμμόρφωση) | J122: Δεν εφαρμόζεται | K122: Βαθμολογία
A123: 31 | B123: Πλάνο εργαστηριακών αναλύσεων | G123: 0 | H123: 9 | I123: 18 | J123: 0
A124: 32 | B124: Υποχρεωτική συχνότητα δειγματοληψίας για κιμά & παρασκευάσματα για E.coli και Salmonella ή Εξαίρεση από την υποχρεωτική συχνότητα | G124: 0 | H124: 9 | I124: 18 | J124: 0
B125: Μικροβιολογικά κριτήρια ασφάλειας | G125: ΝΑΙ (Συμμόρφωση) | H125: ΜΕΡΙΚΗ ΣΥΜΜΟΡΦΩΣΗ | I125: ΟΧΙ (μη συμμόρφωση) | J125: Δεν εφαρμόζεται | K125: Βαθμολογία
A126: 33 | B126: Listeria monocytogenes στα έτοιμα προς κατανάλωση | G126: 0 | H126: 9 | I126: 18 | J126: 0
E127: Ικανά να υποστηρίξουν την ανάπτυξη
E128: Μη ικανά να υποστηρίξουν την ανάπτυξη
E129: Μελέτη παρασκευαστή για την τεκμηρίωση του ορίου των 100 cfu/g
A130: 34 | B130: Salmonella | G130: 0 | H130: 9 | I130: 18 | J130: 0
E131: Κρέας & παρασκευάσματα που προορίζονται να καταναλωθούν ωμά
E132: Κρέας & παρασκευάσματα που προορίζονται να μαγειρευτούν & ΜΔΚ
E133: Κρέας & παρασκευάσματα πουλερικών
E134: Προϊόντα με βάση το κρέας
E135: Ζελατίνη κολλαγόνο
A136: 35 | B136: Salmonella typhimurium/ enteriditis | E136: Νωπό κρέας πουλερικών | G136: 0 | H136: 9 | I136: 18 | J136: 0
B137: Μικροβιολογικά κριτήρια υγιεινής κατά τη διάρκεια της παραγωγικής διαδικασίας | G137: ΝΑΙ (Συμμόρφωση) | H137: ΜΕΡΙΚΗ ΣΥΜΜΟΡΦΩΣΗ | I137: ΟΧΙ (μη συμμόρφωση) | J137: Δεν εφαρμόζεται | K137: Βαθμολογία
A138: 36 | B138: Salmonella σε σφάγεια πουλερικών | G138: 0 | H138: 6 | I138: 12 | J138: 0
A139: 37 | B139: Αερόβιες αποικίες & E.coli σε κιμά και ΜΔΚ | G139: 0 | H139: 6 | I139: 12 | J139: 0
A140: 38 | B140: E. coli σε παρασκευάσματα κρέατος | G140: 0 | H140: 6 | I140: 12 | J140: 0
A141: 39 | B141: Κατάλοιπα-Προσμίξεις (Βαρέα Μέταλλα, Διοξίνες κλπ) | G141: 0 | H141: 6 | I141: 12 | J141: 0
B142: Άλλες εργαστηριακές εξετάσεις
B143: Εργαστηριακή υποστήριξη εντός ή εκτός επιχείρησης
B144: Διαπιστευμένο εργαστήριο
B145: Χρήση πρότυπων μεθόδων αναφοράς ή ισοδύναμων επικυρωμένων έναντι της μεθόδου αναφοράς, εναλλακτικών μεθόδων
A146: 40 | B146: ΤΡΟΠΟΣ ΠΡΟΣΔΙΟΡΙΣΜΟΥ ΧΡΟΝΟΥ ΖΩΗΣ ΠΡΟΪΟΝΤΩΝ (Shelf - life): Διαδικασία προσδιορισμού του χρόνου ζωής των τελικών προϊόντων | G146: 0 | H146: 9 | I146: 18 | J146: 0
B147: ΣΥΝΟΛΟ ΚΕΦΑΛΑΙΟΥ III | D147: =SUM(I122:I146) -> 156 | G147: =SUM(K122:K146) -> 0
B148: 0.7 | E148: 0.399 | I148: =IF(G147>=B149,"HIGH RISK",IF(G147<=E149,"LOW RISK","MEDIUM RISK")) -> LOW RISK
B149: =70%*D147 -> 109.2 | E149: =39.9%*D147 -> 62.244
B151: ΚΕΦΑΛΑΙΟ IV- ΕΛΕΓΧΟΣ ΓΡΑΜΜΗΣ ΠΑΡΑΓΩΓΗΣ – ΕΠΑΛΗΘΕΥΣΗ ΔΙΑΔΙΚΑΣΙΩΝ
A152: A. | B152: ΠΑΡΑΛΑΒΗ – ΑΠΟΘΗΚΕΥΣΗ ΠΡΩΤΩΝ ΥΛΩΝ | G152: ΝΑΙ (Συμμόρφωση) | H152: ΜΕΡΙΚΗ ΣΥΜΜΟΡΦΩΣΗ | I152: ΟΧΙ (μη συμμόρφωση) | J152: Δεν εφαρμόζεται | K152: Βαθμολογία
A153: 41 | B153: Έλεγχος καταλληλόλητας μέσων και συνθηκών μεταφοράς και θερμοκρασίας | G153: 0 | H153: 9 | I153: 18 | J153: 0
A154: 42 | B154: Επαρκές σύστημα για το χειρισμό των πρώτων υλών κατά τις διαδικασίες εκφόρτωσης & παραλαβής | G154: 0 | H154: 9 | I154: 18 | J154: 0
A155: 43 | B155: Πραγματοποιείται συστηματικός μακροσκοπικός έλεγχος | G155: 0 | H155: 6 | I155: 12 | J155: 0
A156: 44 | B156: Έλεγχος συνοδευτικών εγγράφων | G156: 0 | H156: 6 | I156: 12 | J156: 0
A157: 45 | B157: Διασφαλίζεται ότι : όταν πρόκειται για το κατεψυγμένο κρέας (business to business): ημερομηνία παραγωγής ή/και κατάψυξης, αν είναι διαφορετική από την ημερομηνία παραγωγής. | G157: 0 | H157: 9 | I157: 18 | J157: 0
A158: 46 | B158: Η αποθήκευση γίνεται στις ενδεδειγμένες συνθήκες χωρίς άσκοπες καθυστερήσεις. | G158: 0 | H158: 6 | I158: 12 | J158: 0
A159: 47 | B159: Τήρηση κανόνων ορθής αποθηκευτικής πρακτικής (π.χ. μέτρα αποφυγής επιμόλυνσης μεταξύ αναρτημένων σφαγίων και συσκευασμένων προϊόντων) | G159: 0 | H159: 6 | I159: 12 | J159: 0
A160: 48 | B160: Ικανοποιητικό σύστημα καταγραφής θερμοκρασιών και ανάλογοι χειρισμοί σε περίπτωση αποκλίσεων | G160: 0 | H160: 9 | I160: 18 | J160: 0
A161: 49 | B161: Η δεύτερη συσκευασία απομακρύνεται πριν την είσοδο του τροφίμου στο χώρο παραγωγής. | G161: 0 | H161: 6 | I161: 12 | J161: 0
A162: 50 | B162: Προϊόντα που δεν πληρούν τις προδιαγραφές επισημαίνονται, αποθηκεύονται σε διακριτό χώρο και διαχειρίζονται ανάλογα | G162: 0 | H162: 6 | I162: 12 | J162: 0
A163: Β. | B163: ΠΑΡΑΓΩΓΙΚΗ ΔΙΑΔΙΚΑΣΙΑ | G163: ΝΑΙ (Συμμόρφωση) | H163: ΜΕΡΙΚΗ ΣΥΜΜΟΡΦΩΣΗ | I163: ΟΧΙ (μη συμμόρφωση) | J163: Δεν εφαρμόζεται | K163: Βαθμολογία
A164: 51 | B164: Τήρηση των προβλεπόμενων τεκμηριωμένων παραγωγικών διεργασιών | G164: 0 | H164: 9 | I164: 18 | J164: 0
A165: 52 | B165: Οι πρώτες ύλες που χρησιμοποιούνται για την παραγωγή κιμά, παρασκευασμάτων και ΜΔΚ, τηρούν τις ειδικές απαιτήσεις | G165: 0 | H165: 9 | I165: 18 | J165: 0
A166: 53 | B166: Υφίσταται έλεγχος συστήματος επιτήρησης θερμικής επεξεργασίας και συστήματος συναγερμού | G166: 0 | H166: 9 | I166: 18 | J166: 0
A167: 54 | B167: Υφίσταται έλεγχος των συνθηκών προϊόντων ωρίμανσης (σχέση συνθηκών υγρασίας-θερμοκρασίας-χρόνου) | G167: 0 | H167: 9 | I167: 18 | J167: 0
A168: 55 | B168: Ταχεία ψύξη / κατάψυξη – Ορθή χρήση & λειτουργία | G168: 0 | H168: 6 | I168: 12 | J168: 0
A169: 56 | B169: Ελεγχόμενη μετακίνηση ανάλογα με το επίπεδο υγιεινής επιμέρους χώρων | G169: 0 | H169: 9 | I169: 18 | J169: 0
A170: 57 | B170: Έλεγχος θερμοκρασιών κρέατος και θερμοκρασιών περιβάλλοντος | G170: 0 | H170: 9 | I170: 18 | J170: 0
A171: 58 | B171: Εφαρμογή χρονικού διαχωρισμού | G171: 0 | H171: 6 | I171: 12 | J171: 0
A172: 59 | B172: Η απολύμανση των εργαλείων γίνεται με παροχή θερμού νερού σε θερμοκρασία τουλάχιστον 82ο C ή με εναλλακτικό σύστημα με ισοδύναμο αποτέλεσμα. | G172: 0 | H172: 9 | I172: 18 | J172: 0
A173: Γ. | B173: ΣΥΣΚΕΥΑΣΙΑ/ΑΝΑΣΥΣΚΕΥΑΣΙΑ | G173: ΝΑΙ (Συμμόρφωση) | H173: ΜΕΡΙΚΗ ΣΥΜΜΟΡΦΩΣΗ | I173: ΟΧΙ (μη συμμόρφωση) | J173: Δεν εφαρμόζεται | K173: Βαθμολογία
A174: 60 | B174: Τηρούνται τα μέτρα αποφυγής επιμόλυνση σε περίπτωση ανασυσκευασίας | G174: 0 | H174: 6 | I174: 12 | J174: 0
A175: 61 | B175: Τήρηση ενδεδειγμένων / κατάλληλων συνθηκών υγιεινής | G175: 0 | H175: 6 | I175: 12 | J175: 0
A176: 62 | B176: Σε περίπτωση χρήσης ειδικών συστημάτων συσκευασίας (π.χ. vacuum, modified technology etc.) υφίσταται σύστημα ελέγχου των διαδικασιών | G176: 0 | H176: 6 | I176: 12 | J176: 0
A177: 63 | B177: Χρήση μεθόδων εξυγίανσης μετά τη συσκευασία | G177: 0 | H177: 3 | I177: 6 | J177: 0
A178: Δ. | B178: ΑΠΟΘΗΚΕΥΣΗ – ΔΙΑΝΟΜΗ ΠΡΟΪΟΝΤΩΝ | G178: ΝΑΙ (Συμμόρφωση) | H178: ΜΕΡΙΚΗ ΣΥΜΜΟΡΦΩΣΗ | I178: ΟΧΙ (μη συμμόρφωση) | J178: Δεν εφαρμόζεται | K178: Βαθμολογία
A179: 64 | B179: Υπάρχουν επαρκείς θάλαμοι αποθήκευσης & κατάλληλες συνθήκες θερμοκρασίας και υγιεινής αποθήκευσης | G179: 0 | H179: 6 | I179: 12 | J179: 0
A180: 65 | B180: Τήρηση συστήματος «first in – first out» | G180: 0 | H180: 6 | I180: 12 | J180: 0
A181: 66 | B181: Διανομή με κατάλληλα μέσα | G181: 0 | H181: 6 | I181: 12 | J181: 0
A182: 67 | B182: Κατάλληλες συνθήκες θερμοκρασίας (με ανεκτή διακύμανση προς τα άνω τριών βαθμών) και υγιεινής μεταφοράς | G182: 0 | H182: 6 | I182: 12 | J182: 0
A183: 68 | B183: Προϊόντα που ανακαλούνται επισημαίνονται και αποθηκεύονται σε διακριτό χώρο και διαχειρίζονται ανάλογα | G183: 0 | H183: 6 | I183: 12 | J183: 0
A184: 69 | B184: Υφίσταται διαδικασία πολιτικής επιστροφών (Ξεχωριστή αποθήκευση και με κατάλληλη επισήμανση.) | G184: 0 | H184: 9 | I184: 18 | J184: 0
B185: ΣΥΝΟΛΟ ΚΕΦΑΛΑΙΟΥ IV | D185: =SUM(I153:I184) -> 414 | G185: =SUM(K153:K184) -> 0
B186: 0.7 | E186: 0.399 | I186: =IF(G185>=B187,"HIGH RISK",IF(G185<=E187,"LOW RISK","MEDIUM RISK")) -> LOW RISK
B187: =70%*D185 -> 289.8 | E187: =39.9%*D185 -> 165.186
B189: ΚΕΦΑΛΑΙΟ V :ΓΕΝΙΚΕΣ ΑΠΑΙΤΗΣΕΙΣ ΥΓΙΕΙΝΗΣ
A190: Α. | B190: ΓΕΝΙΚΕΣ ΑΠΑΙΤΗΣΕΙΣ ΚΤΙΡΙΑΚΩΝ ΥΠΟΔΟΜΩΝ | G190: ΝΑΙ (Συμμόρφωση) | H190: ΜΕΡΙΚΗ ΣΥΜΜΟΡΦΩΣΗ | I190: ΟΧΙ (μη συμμόρφωση) | J190: Δεν εφαρμόζεται | K190: Βαθμολογία
B191: ΕΞΩΤΕΡΙΚΟ ΠΕΡΙΒΑΛΛΟΝ
A192: 70 | B192: Σαφής οριοθέτηση | G192: 0 | H192: 3 | I192: 6 | J192: 0
A193: 71 | B193: Γειτνίαση με πηγές μόλυνσης | G193: 0 | H193: 6 | I193: 12 | J193: 0
A194: 72 | B194: Ικανοποιητική διαμόρφωση, καθαριότητα, υγιεινή | G194: 0 | H194: 6 | I194: 12 | J194: 0
A195: 73 | B195: Επικαιροποιημένη κάτοψη (layout) της εγκατάστασης | G195: 0 | H195: 3 | I195: 6 | J195: 0
B196: ΣΧΕΔΙΑΣΜΟΣ – ΔΙΑΧΩΡΙΣΜΟΣ- ΕΠΑΡΚΕΙΑ ΧΩΡΩΝ
A197: 74 | B197: Επαρκές μέγεθος για τον συνήθη όγκο παραγωγής | G197: 0 | H197: 3 | I197: 6 | J197: 0
A198: 75 | B198: Ανεξάρτητη είσοδος – έξοδος προσωπικού, Α’ υλών, βοηθητικών υλών, υλικών συσκευασίας και τελικών προϊόντων ή χρονικός διαχωρισμός | G198: 0 | H198: 3 | I198: 6 | J198: 0
A199: 76 | B199: Κίνδυνοι διασταυρούμενης μόλυνσης | G199: 0 | H199: 6 | I199: 12 | J199: 0
A200: Β. | B200: ΓΕΝΙΚΑ ΧΑΡΑΚΤΗΡΙΣΤΙΚΑ ΧΩΡΩΝ | G200: ΝΑΙ (Συμμόρφωση) | H200: ΜΕΡΙΚΗ ΣΥΜΜΟΡΦΩΣΗ | I200: ΟΧΙ (μη συμμόρφωση) | J200: Δεν εφαρμόζεται | K200: Βαθμολογία
A201: 77 | B201: Καταλληλόλητα υλικών κατασκευής | G201: 0 | H201: 6 | I201: 12 | J201: 0
A202: 78 | B202: Δυνατότητα επαρκούς καθαρισμού – απολύμανσης | G202: 0 | H202: 6 | I202: 12 | J202: 0
A203: 79 | B203: Αποτροπή συσσώρευσης ρύπων & υδρατμών | G203: 0 | H203: 6 | I203: 12 | J203: 0
A204: 80 | B204: Πλέγματα προστασίας στα ανοίγματα | G204: 0 | H204: 3 | I204: 6 | J204: 0
A205: 81 | B205: Επαρκής φωτισμός, προστατευόμενα φωτιστικά μέσα | G205: 0 | H205: 3 | I205: 6 | J205: 0
A206: 82 | B206: Επαρκής αερισμός, αποφυγή μηχανικής ροής αέρα από μολυσμένους σε καθαρούς χώρους | G206: 0 | H206: 6 | I206: 12 | J206: 0
A207: 83 | B207: Υγειονομικά φρεάτια – αποτελεσματική απομάκρυνση λυμάτων και τακτικός έλεγχος | G207: 0 | H207: 6 | I207: 12 | J207: 0
A208: Γ. | B208: ΕΞΟΠΛΙΣΜΟΣ | G208: ΝΑΙ (Συμμόρφωση) | H208: ΜΕΡΙΚΗ ΣΥΜΜΟΡΦΩΣΗ | I208: ΟΧΙ (μη συμμόρφωση) | J208: Δεν εφαρμόζεται | K208: Βαθμολογία
A209: 84 | B209: Καταλληλόλητα υλικών | G209: 0 | H209: 6 | I209: 12 | J209: 0
A210: 85 | B210: Κατάλληλος σχεδιασμός τοποθέτηση | G210: 0 | H210: 6 | I210: 12 | J210: 0
A211: 86 | B211: Κατάλληλο σύστημα κλιματισμού (όταν απαιτείται ελεγχόμενη θερμοκρασία χώρου) σωστά διατηρημένο (φίλτρα) | G211: 0 | H211: 6 | I211: 12 | J211: 0
A212: 87 | B212: Ψυγεία & καταψύκτες με σύστημα αυτόματης καταγραφής θερμοκρασιών (σύστημα συναγερμού) | G212: 0 | H212: 6 | I212: 12 | J212: 0
A213: 88 | B213: Εξοπλισμός ταχείας κατάψυξης με σύστημα προγραμματισμού & παρακολούθησης του χρόνου – θερμοκρασίας παραμονής των υπό κατάψυξη προϊόντων | G213: 0 | H213: 6 | I213: 12 | J213: 0
A214: 89 | B214: Εξοπλισμός θερμικής επεξεργασίας, κάπνισης με σύστημα ελέγχου και καταγραφής των παραμέτρων (χρόνος – θερμοκρασία) της διαδικασίας | G214: 0 | H214: 6 | I214: 12 | J214: 0
A215: 90 | B215: Αυτόματες συσκευές ελέγχου παραμέτρων | G215: 0 | H215: 6 | I215: 12 | J215: 0
A216: 91 | B216: Εξοπλισμός & εργαλεία κατάλληλα για την πρόληψη φυσικών κινδύνων (ανιχνευτές μετάλλων, κόσκινα κτλ) / Πολιτική ξένων σωμάτων (γυαλί, πλαστικά, μεταλλικά, food grade λίπανση κα) | G216: 0 | H216: 6 | I216: 12 | J216: 0
A217: 92 | B217: Κατάλληλα μέσα και εγκαταστάσεις καθαρισμού – απολύμανσης εξοπλισμού & εργαλείων | G217: 0 | H217: 6 | I217: 12 | J217: 0
A218: Δ. | B218: ΧΩΡΟΙ ΥΓΙΕΙΝΗΣ & ΑΠΟΔΥΤΗΡΙΑ | G218: ΝΑΙ (Συμμόρφωση) | H218: ΜΕΡΙΚΗ ΣΥΜΜΟΡΦΩΣΗ | I218: ΟΧΙ (μη συμμόρφωση) | J218: Δεν εφαρμόζεται | K218: Βαθμολογία
A219: 93 | B219: Επαρκής αριθμός τουαλετών | G219: 0 | H219: 3 | I219: 6 | J219: 0
A220: 94 | B220: Επαρκής αερισμός | G220: 0 | H220: 3 | I220: 6 | J220: 0
A221: 95 | B221: Προθάλαμος τουαλετών με νιπτήρες που λειτουργούν κατά προτίμηση χωρίς τη χρήση χεριών | G221: 0 | H221: 3 | I221: 6 | J221: 0
A222: 96 | B222: Παροχή ζεστού – κρύου νερού | G222: 0 | H222: 3 | I222: 6 | J222: 0
A223: 97 | B223: Διαθέσιμα υλικά απολύμανσης και στεγνώματος χεριών | G223: 0 | H223: 3 | I223: 6 | J223: 0
A224: 98 | B224: Αποδυτήρια με επαρκή αριθμό κατάλληλων ερμαριών | G224: 0 | H224: 3 | I224: 6 | J224: 0
A225: Ε. | B225: ΥΓΙΕΙΝΗ ΠΡΟΣΩΠΙΚΟΥ & ΠΡΑΚΤΙΚΕΣ ΧΕΙΡΙΣΜΟΥ | G225: ΝΑΙ (Συμμόρφωση) | H225: ΜΕΡΙΚΗ ΣΥΜΜΟΡΦΩΣΗ | I225: ΟΧΙ (μη συμμόρφωση) | J225: Δεν εφαρμόζεται | K225: Βαθμολογία
A226: 99 | B226: Βεβαιώσεις υγείας για όλο το προσωπικό που σχετίζεται με τον χώρο παραγωγής ή έρχεται σε επαφή με τα τρόφιμα | G226: 0 | H226: 6 | I226: 12 | J226: 0
A227: 100 | B227: Πολιτική απαγόρευσης χειρισμού τροφίμων από ασθενείς εργαζόμενους με επίπτωση στα τρόφιμα | G227: 0 | H227: 3 | I227: 6 | J227: 0
A228: 101 | B228: Πρόσθετα μέτρα ελέγχου της υγείας του προσωπικού | G228: 0 | H228: 3 | I228: 6 | J228: 0
... 110 more rows
